Cogmind - Beta 15 @@@ ROGUE MODE // 2025.08.14 @ 02:16:58 Player: bjr29 Result: Destroyed by NU-PQ0(R) with Subdweller Laser Performance ------------- Evolutions (0) 0 Regions Visited (2) 400 Robots Destroyed (12) 60 Value Destroyed (337) 337 Prototype IDs (2) 40 Alien Tech Used (0) 0 Bonus (0) 0 TOTAL SCORE: 837 Bonus ------- None Cogmind --------- Core Integrity 0/250 Matter 23/300 Energy 100/100 System Corruption 1% Temperature Cool (6) Movement Treading (400) Ox3 Location -10/Subcaves Parts ------- > --- POWER (1) -------- (None) > --- PROPULSION (2) --- Light Treads > --- UTILITY (2) ------ Huge Storage Unit > --- WEAPON (2) ------- (None) > --- INVENTORY (25) --- Small Storage Unit Small Battery (100) Terrain Scanner EM Pulse Gun Peak State ------------ > --- POWER ------------ Light Ion Engine > --- PROPULSION ------- Light Treads Light Treads > --- UTILITY ---------- Small Storage Unit ECM Suite > --- WEAPON ----------- Assault Rifle Grenade Launcher > --- INVENTORY -------- Light Ion Engine Small Battery EM Pulse Gun [Rating: 7] Favorites ----------- Power Light Ion Engine Engine Light Ion Engine Propulsion Light Treads Treads Light Treads Utility Small Storage Unit Device ECM Suite Storage Small Storage Unit Weapon Assault Rifle Energy Gun EM Pulse Gun Ballistic Gun Assault Rifle Launcher Grenade Launcher Build | -11 -10 -10 ------- Run | Yrd Mat Sub Slots Evolved . | . . . Power . | . . . Propulsion . | . . . Utility . | . . . Weapon . | . . . Parts Attached 11 | 6 5 . Power 2 | 1 1 . Engine 2 | 1 1 . Core . | . . . Reactor . | . . . Propulsion 2 | 2 . . Treads 2 | 2 . . Leg . | . . . Wheel . | . . . Hover . | . . . Flight . | . . . Utility 4 | 1 3 . Device 2 | . 2 . Storage 2 | 1 1 . Processor . | . . . Hackware . | . . . Protection . | . . . Artifact . | . . . Weapon 3 | 2 1 . Energy Gun 1 | 1 . . Energy Cannon . | . . . Ballistic Gun 1 | 1 . . Ballistic Cannon . | . . . Launcher 1 | . 1 . Special Weapon . | . . . Impact Weapon . | . . . Slashing Weapon . | . . . Piercing Weapon . | . . . Special Melee Weapon . | . . . Unidentified Prototypes . | . . . Parts Lost 5 | . . 5 Power 1 | . . 1 Propulsion 1 | . . 1 Utility 1 | . . 1 Weapon 2 | . . 2 Highest Loss Streak 3 | . . 3 To Critical Strikes . | . . . Average Backups 2 | 1 3 4 Power . | 1 . . Propulsion . | . . . Utility 1 | . 1 3 Weapon . | . . 1 Tool/Special . | . . . Unused Backups 2 | . 1 1 Power 1 | . 1 . Propulsion . | . . . Utility 1 | . . 1 Weapon . | . . . Tool/Special . | . . . Average Slot Usage (%) 94 | . 96 90 Engine 13 | . 14 13 Treads 26 | . 28 25 Device 12 | . 12 12 Storage 12 | . 11 14 Ballistic Gun 13 | . 14 12 Launcher 12 | . 13 11 Peak Build Rating 7 | 6 7 7 Average Rating 6 | 5 6 6 On Entrance 4 | . 6 7 Naked Turns . | . . . Heaviest Build 92 | 12 92 92 Greatest Support 40 | 40 40 40 Greatest Overweight (x) 4 | . 2 4 Average Overweight (x) . | . . 2 Largest Inventory Capacity 25 | 8 25 25 Average Capacity 12 | 7 12 25 Most Carried 5 | 5 5 4 Average Carried 2 | 1 3 4 Final Capacity 25 | 8 25 25 Final Carried 4 | 1 4 4 Class Distribution -------------------- 100% | Mutant Dominant Class ---------------- Mutant | -10/Materials Mutant | -10/Subcaves Resources | -11 -10 -10 ----------- Run | Yrd Mat Sub Matter Collected 308 | 236 34 38 Remotely . | . . . Salvage Created 214 | . 135 79 Parts 22 | . 14 8 Haulers Intercepted . | . . . Recyclers Shooed 2 | . 2 . Parts Field Recycled . | . . . Retrieved Matter . | . . . Parts Self-Destructed 3 | . . 3 Prevented . | . . . Kills | -11 -10 -10 ------- Run | Yrd Mat Sub Combat Hostiles Destroyed 9 | . 6 3 Guns 2 | . 2 . AOE 7 | . 4 3 Classes Destroyed 5 | . 4 1 Worker 1 | . 1 . Builder 2 | . 2 . Swarmer 2 | . 2 . Grunt 4 | . 4 . Subdweller 3 | . . 3 Best Kill Streak 5 | . 5 3 Combat Bots Only 3 | . 3 3 Max Kills in Single Turn 2 | . 2 1 Gunslinging . | . . . Exploded 1 | . 1 1 Melee . | . . . Uniques/NPCs Destroyed . | . . . Combat | -11 -10 -10 -------- Run | Yrd Mat Sub Hostile Shots Fired 67 | . 23 44 Missed 17 | . 6 11 Hits 50 | . 17 33 Projectile 50 | . 17 33 Critical Strikes 3 | . . 3 Damage Taken 920 | . 236 684 Core 270 | . 42 228 Absorbed by Shields . | . . . Core Remaining (%) 100 | 100 . . Volleys Fired 34 | . 18 16 Largest 2 | . 2 2 Hottest 50 | . 50 50 Shots Fired 52 | . 30 22 Gun 34 | . 18 16 Cannon . | . . . Launcher 18 | . 12 6 Special . | . . . Kinetic 34 | . 18 16 Thermal . | . . . Explosive 18 | . 12 6 Electromagnetic . | . . . Robot Hit Streak 9 | . 9 7 Robot Miss Streak 3 | . 3 1 Penetration Max . | . . . Secondary Targets . | . . . Shots Hit Robots 31 | . 17 14 Core Hits 18 | . 13 5 Critical Kills . | . . . Critical Parts Destroyed . | . . . Critical Strikes . | . . . Melee Attacks . | . . . Impact . | . . . Slashing . | . . . Piercing . | . . . Sneak Attacks . | . . . Combat Hostiles . | . . . Follow-up Attacks . | . . . Damage Inflicted 1231 | 2 933 296 Guns 181 | . 142 39 Cannons . | . . . Explosions 1037 | . 780 257 Melee . | . . . Ramming 13 | 2 11 . Kinetic 181 | . 142 39 Thermal 127 | . 127 . Explosive 910 | . 653 257 Electromagnetic . | . . . Impact . | . . . Slashing . | . . . Piercing . | . . . Highest Corruption 1 | . 1 1 Average Corruption 1 | . 1 1 Corruption Purged . | . . . Corruption Blocked . | . . . Effects 6 | . 4 2 Matter Fused 4 | . 3 1 Heat Flow Errors 1 | . . 1 Energy Discharges 1 | . 1 . Overload Shots . | . . . Overflow Damage 42 | . 42 . Projectiles . | . . . Explosions 42 | . 42 . Melee . | . . . Knockbacks . | . . . Impact . | . . . Kinetic . | . . . Secondary . | . . . Self-Inflicted Damage 59 | . 59 . Shots 1 | . 1 . Rammed 4 | 2 2 . Targets Rammed 4 | 2 2 . Kicked . | . . . Crushed . | . . . Highest Temperature 164 | . 2 164 Average Temperature 31 | . 2 84 Received Heat Transfer 240 | . 72 168 Siege Activations . | . . . Martial Activations . | . . . Shielding Activations . | . . . Robots Disrupted . | . . . Combat Hostiles . | . . . Robots Corrupted . | . . . Combat Hostiles . | . . . Parts Fried . | . . . Impact Corruptions . | . . . Robots Melted . | . . . Combat Hostiles . | . . . Parts Melted . | . . . Heat Transferred 100 | . 100 . Parts Sabotaged . | . . . Parts Stolen . | . . . Parts Stripped . | . . . Power Chain Reactions . | . . . Alert | -11 -10 -10 ------- Run | Yrd Mat Sub Maximum Alert Level . | . . . Low Security (%) 100 | 100 100 . Level 1 . | . . . Level 2 . | . . . Level 3 . | . . . Level 4 . | . . . Level 5 . | . . . High Security . | . . . Max Security . | . . . Peak Influence 179 | . 179 . Initial . | . . . Average 35 | . 90 . Influence Increases 293 | . 293 . Destroy 0b10 Robot/C 120 | . 120 . Destroy 0b10 Robot/NC 15 | . 15 . Destroy Leader 30 | . 30 . Successful Hack 25 | . 25 . Disable Machine 75 | . 75 . Destroy Structure 28 | . 28 . Influence Decreases 293 | . 200 93 Entered New Map 45 | . . 45 Time Decay 248 | . 200 48 Squads Dispatched 4 | . 4 . Investigation 3 | . 3 . Extermination . | . . . Reinforcement 1 | . 1 . Assault . | . . . Garrison . | . . . Intercept . | . . . Searches Triggered . | . . . Construction Impeded . | . . . Haulers Reinforced . | . . . Active Scanning Responses . | . . . Cargo Convoy Interrupts . | . . . Stealth | -11 -10 -10 --------- Run | Yrd Mat Sub Distress Signals 1 | . 1 . Communications Jammed . | . . . Distress Signals . | . . . Times Spotted 13 | . 9 4 Peak Tracking Total 5 | . 5 2 Tactical Retreats 1 | . 1 . Traps | -11 -10 -10 ------- Run | Yrd Mat Sub Traps Triggered 1 | . 1 . Indirectly . | . . . Trap Hack Attempts . | . . . Triggered . | . . . Disarmed . | . . . Reprogrammed . | . . . Reused . | . . . Traps Extracted . | . . . Installed . | . . . Triggered . | . . . Machines | -11 -10 -10 ---------- Run | Yrd Mat Sub Machines Disabled 6 | . 6 . Max in Single Turn 5 | . 5 . Machines Repaired . | . . . Machines Dismantled . | . . . Machines Sabotaged . | . . . Overloaded Fab Kills . | . . . Hacking | -11 -10 -10 --------- Run | Yrd Mat Sub Machines Accessed 7 | . 6 1 Terminals 5 | . 5 . Fabricators . | . . . Repair Stations . | . . . Recycling Units 1 | . 1 . Scanalyzers . | . . . Garrison Access . | . . . Total Hacks 26 | . 22 4 Successful 12 | . 8 4 Failed 14 | . 14 . Catastrophic 3 | . 3 . Database Lockouts . | . . . Manual 15 | . 14 1 Terminals 18 | . 18 . Fabricators . | . . . Repair Stations . | . . . Recycling Units 4 | . 4 . Scanalyzers . | . . . Garrison Access . | . . . Terminal Hacks 10 | . 6 4 Record 4 | . . 4 Robot Analysis 1 | . 1 . Prototype ID Bank 1 | . 1 . Unreport Threat 1 | . 1 . Surveillance Status 1 | . 1 . Patrol Status 1 | . 1 . Recall Investigation 1 | . 1 . Fabricator Hacks . | . . . Repair Station Hacks . | . . . Recycling Unit Hacks 2 | . 2 . Recycle Component 1 | . 1 . Process 1 | . 1 . Scanalyzer . | . . . Garrison Access Hacks . | . . . Unauthorized Hacks . | . . . Terminals . | . . . Fabricators . | . . . Repair Stations . | . . . Recycling Units . | . . . Scanalyzers . | . . . Garrison Access . | . . . Data Cores Recovered . | . . . Used . | . . . Hacking Detections 6 | . 6 . Full Trace Events 6 | . 6 . Feedback Events 1 | . 1 . Corruption 1 | . 1 . Feedback Blocked . | . . . Robot Schematics Acquired . | . . . Robots Built . | . . . Authchips . | . . . Time . | . . . Total Robot Build Rating . | . . . Part Schematics Acquired . | . . . Parts Built . | . . . Authchips . | . . . Time . | . . . Total Part Build Rating . | . . . Parts Repaired . | . . . Time . | . . . Parts Recycled 1 | . 1 . Recycled Matter 108 | . 108 . Retrieved Matter . | . . . Retrieved Components . | . . . Parts Scanalyzed . | . . . Part Schematics Acquired . | . . . Parts Damaged . | . . . Bothacking | -11 -10 -10 ------------ Run | Yrd Mat Sub Used RIF Installer . | . . . Robots Hacked . | . . . Non-combat . | . . . Combat . | . . . Robot Hacks Applied . | . . . Relay Couplers Released . | . . . Fabnet Peak Effective % . | . . . Robots Rewired . | . . . Allies Hacked . | . . . Hacks Repelled . | . . . Allies | -11 -10 -10 -------- Run | Yrd Mat Sub Total Allies . | . . . Largest Group . | . . . Highest-Rated Group . | . . . Highest-Rated Ally . | . . . Total Orders . | . . . Ally Attacks . | . . . Total Damage . | . . . Kills . | . . . Allies Corrupted . | . . . Allies Melted . | . . . Intel | -11 -10 -10 ------- Run | Yrd Mat Sub Active Infowar (turns) 702 | . 413 289 Terrain 87 | . 87 . ECM 702 | . 413 289 Robot Analysis Total 1 | . 1 . Derelict Logs Recovered . | . . . Drone Launches . | . . . Drone Recoveries . | . . . Exploration | -11 -10 -10 ------------- Run | Yrd Mat Sub Turns Passed 1664 | 811 536 317 Spaces Moved 844 | 517 245 82 Core 28 | 28 . . Treads 816 | 489 245 82 Legs . | . . . Wheels . | . . . Hover . | . . . Flight . | . . . Fastest Speed 50 | 50 160 320 Average Speed 183 | 154 193 339 Slowest Speed 480 | 160 320 480 Overloaded Moves . | . . . Propulsion Burnouts . | . . . Robots Hopped . | . . . Potential Cave-ins . | . . . Cave-ins Triggered . | . . . Exploration Rate (%) 26 | 34 34 10 Regions Visited 2 Branch Regions 1 Pre-discovered Areas . | . . . Known Exits Taken . | . . . Unknown Exits Taken 2 | 1 1 . Scrap Searched . | . . . Spaces Dug . | . . . Terrain Destroyed 63 | . 39 24 Melee . | . . . Projectile . | . . . AOE 63 | . 39 24 Terrain Rammed . | . . . Walls Destroyed . | . . . Machines Disabled . | . . . Actions | -11 -10 -10 --------- Run | Yrd Mat Sub Total 908 | 530 280 98 Wait 1 | 1 . . Move 842 | 516 244 82 Hop . | . . . Pick Up 11 | 5 6 . Fast Attach 2 | 2 . . Attach 9 | 4 5 . Detach 4 | . 4 . Swap . | . . . Drop 1 | . 1 . Fire 34 | . 18 16 Melee . | . . . Ram . | . . . Kick . | . . . Crush 4 | 2 2 . Escape Stasis . | . . . Rewire . | . . . Trap . | . . . Miscellaneous . | . . . Route ------- -11/Scrapyard -10/Materials (discovered 2 exits: [*Min] / *Sub) -10/Subcaves (discovered 1 exit: [*Mat]) History --------- Turn | Location | Event 16 | -11/Scrapyard | Discovered new exit (range 15) 812 | -11/Scrapyard | Entered Materials 813 | -10/Materials | Build established: Mutant 982 | -10/Materials | Discovered new exit (range 7) 1296 | -10/Materials | Discovered new exit (range 13) 1348 | -10/Materials | Entered Subcaves 1348 | -10/Subcaves | Discovered new exit (range 11) 1489 | -10/Subcaves | Visited Clippyterm 1499 | -10/Subcaves | Learned Factory emergency access door positions 1606 | -10/Subcaves | Core integrity fell below 50% 1645 | -10/Subcaves | Core integrity fell below 20% 1665 | -10/Subcaves | Destroyed by NU-PQ0(R) with Subdweller Laser Last Messages --------------- SE-YDT(R) affixes Scrap Shield Fragment to Scrap Shield. SE-YDT(R) destroyed. Subatomizers dissect the Sub. Power Source. Acquired 38 matter. Subatomizers dissect the Sub. Power Source. Grenade Launcher destroyed. The unstable cave ceiling collapses. Lgt. Treads destroyed. Subatomizers dissect the Sub. Power Source. Subatomizers dissect the Disposable Heat Sink. Assault Rifle destroyed. The unstable cave ceiling collapses. System corrupted: Matter fused (-10). The unstable cave ceiling collapses. ECM Suite destroyed. Subatomizers dissect the Disposable Heat Sink. Subatomizers dissect the Sub. Monowheel. Ion Engine destroyed. Map ----- +----------------------------------------------------+ | ????????????# #?????????????????? | | ???????????## ### # ##????????????????? | | ??????????## #?###### #### #??????????? | | ??????????# ##????# #???????????? | | ???######## ##???## ## ####???????????? | | ???#"""## #????# #?##??????????????? | | ???#"" ## ##??## ##????????????????? | | ???#"X #??# ##???????????????? | | ???#"" ## ## ### #???????????????? | | ???#"""### #?#### ##???????????????? | | ???###### ## #????## ######????????????? | | ????????## ####?????# ### ##???????????? | | ?????????## ###??????## #???????????? | | ??????????## ##??????## #### #???????????? | | ???????????## ##??????####??# #???????????? | | ????????????#### ##??????????? #???????????? | | ???????????????# #??????????? ##???????????? | | ???????????????# ##?????????? #????????????? | | ????????????##?# ##??##???? ##????????????? | | ????????##### ## ### ##?? ## #????????????? | | ????????# ?## #????????????? | | ???????# ## #????????????? | | ???????## # && & < #????????????? | | ????????# # & * %& #?????????????? | | ????????## = !! #??????????????? | | ?????????# R@ #??????????????? | | ????????# # " ## ### #??????????????? | | ????????# ## # " #####??? ? ???????????????? | | ????????## """?### " ###?????????????????????????? | | ????????# "#????# " #???????????????????????????? | | ????????## "?????#" #???????????????????????????? | | ????????? ??????" " #???????????????????????????? | | ???????????????? " #???????????????????????????? | | ???????????????" ### ???????????????????????????? | | ??????????????? ##??? ???????????????????????????? | | ?????????????????????#???????????????????????????? | | ?????????????????????????????????????????????????? | | ?????????????????????????????????????????????????? | | ?????????????????????????????????????????????????? | | ?????????????????????????????????????????????????? | | ?????????????????????????????????????????????????? | | ?????????????????????????????????????????????????? | | ?????????????????????????????????????????????????? | | ?????????????????????????????????????????????????? | | ?????????????????????????????????????????????????? | | ?????????????????????????????????????????????????? | | ?????????????????????????????????????????????????? | | ?????????????????????????????????????????????????? | | ?????????????????????????????????????????????????? | | ?????????????????????????????????????????????????? | +----------------------------------------------------+ Best States ------------- Heat Dissipation 25 Energy Generation 10 Energy Capacity 250 Matter Stores 283 Matter Capacity 300 Sight Range 16 Terrain Scan Range 14 Terrain Scan Density 10 ECM Strength 1 Evasion (%) 50 Recoil Reduction 2 Item Schematics ----------------- None Robot Schematics ------------------ None Fabricated ------------ Nothing Repaired ---------- Nothing Alien Tech Used ----------------- None Achievements -------------- GoHome() Party Time Challenges ------------ None Game ------ Seed LongswordMissileScythe Manual? 0 Play Time 00:20:10 Cumulative 1.3 hours Start 2025.08.14 @ 01:54:07 End 2025.08.14 @ 02:16:58 Sessions 1 Manual Loads 0 Difficulty Rogue Special Mode None Game No. 5 Rogue 5 Adventurer 0 Explorer 0 Win Type - Total 0 Types 0/0/0/0/0/0/0/0/0/0 Lore% 2 Gallery% 5 Achievement% 7 Wizard Run 0 Options --------- Layout 1 ASCII 0 Keyboard 0 Movement Arrows Keybinds 0 Fullscreen 1 Font 24/Smallcaps Map View 50x35 Zoom Use 0% Tactical HUD 0 Map Filters NONE Filters NONE Steam 1 RUN: 7eabd40b-c36d-491e-8920-6e1bba9f94c0